[Event "Tournoi de MI Clichy 92 2022"]
[Site "Clichy, France"]
[Date "2022.02.27"]
[Round "9.3"]
[White "Petrov, Martin"]
[Black "Mekhane, Adam"]
[Result "1-0"]
[TimeControl "1H40 40 moves plus 30 minutes + 30 seconds from move one"]
[WhiteElo "2547"]
[BlackElo "2316"]

1. e4 {[%clk 01:30:37]} {[%emt 00:00:21]} c5 {[%clk 01:27:21]} {[%emt
00:03:39]} 2. Nf3 {[%clk 01:31:00]} {[%emt 00:00:07]} Nc6 {[%clk 01:27:47]}
{[%emt 00:00:05]} 3. d4 {[%clk 01:31:21]} {[%emt 00:00:09]} cxd4 {[%clk
01:28:13]} {[%emt 00:00:04]} 4. Nxd4 {[%clk 01:31:46]} {[%emt 00:00:04]} Nf6
{[%clk 01:28:39]} {[%emt 00:00:04]} 5. Nc3 {[%clk 01:32:09]} {[%emt 00:00:07]}
d6 {[%clk 01:29:03]} {[%emt 00:00:06]} 6. Bg5 {[%clk 01:32:34]} {[%emt
00:00:05]} e6 {[%clk 01:29:27]} {[%emt 00:00:07]} 7. Qd2 {[%clk 01:33:00]}
{[%emt 00:00:04]} a6 {[%clk 01:29:52]} {[%emt 00:00:05]} 8. O-O-O {[%clk
01:32:58]} {[%emt 00:00:32]} Bd7 {[%clk 01:30:00]} {[%emt 00:00:23]} 9. Kb1
{[%clk 01:31:34]} {[%emt 00:01:53]} Be7 {[%clk 01:29:02]} {[%emt 00:01:28]} 10.
Nxc6 {[%clk 01:31:37]} {[%emt 00:00:27]} Bxc6 {[%clk 01:26:35]} {[%emt
00:02:55]} 11. f3 {[%clk 01:31:38]} {[%emt 00:00:31]} h6 {[%clk 01:21:38]}
{[%emt 00:05:27]} 12. Be3 {[%clk 01:30:22]} {[%emt 00:01:46]} b5 {[%clk
01:15:51]} {[%emt 00:06:18]} 13. Ne2 {[%clk 01:21:20]} {[%emt 00:09:31]} Qc7
{[%clk 01:13:28]} {[%emt 00:02:54]} 14. Nd4 {[%clk 01:21:35]} {[%emt 00:00:15]}
Bb7 {[%clk 01:12:51]} {[%emt 00:01:07]} 15. h4 {[%clk 01:20:56]} {[%emt
00:01:08]} d5 {[%clk 01:00:25]} {[%emt 00:12:57]} 16. e5 {[%clk 01:21:01]}
{[%emt 00:00:25]} Nd7 {[%clk 01:00:48]} {[%emt 00:00:07]} 17. f4 {[%clk
01:20:51]} {[%emt 00:00:40]} Nc5 {[%clk 00:56:34]} {[%emt 00:04:45]} 18. Rh3
{[%clk 01:19:55]} {[%emt 00:01:25]} O-O-O {[%clk 00:54:04]} {[%emt 00:03:01]}
19. Bg1 {[%clk 01:10:04]} {[%emt 00:10:20]} Kb8 {[%clk 00:53:13]} {[%emt
00:01:22]} 20. Qe1 {[%clk 00:56:45]} {[%emt 00:13:49]} g6 {[%clk 00:44:17]}
{[%emt 00:09:26]} 21. h5 {[%clk 00:47:04]} {[%emt 00:10:10]} Rc8 {[%clk
00:33:37]} {[%emt 00:11:11]} 22. hxg6 {[%clk 00:47:06]} {[%emt 00:00:28]} fxg6
{[%clk 00:34:01]} {[%emt 00:00:06]} 23. a3 {[%clk 00:37:14]} {[%emt 00:10:22]}
Qd7 {[%clk 00:26:18]} {[%emt 00:08:13]} 24. Nb3 {[%clk 00:35:34]} {[%emt
00:02:11]} Nxb3 {[%clk 00:20:10]} {[%emt 00:06:38]} 25. Rxb3 {[%clk 00:35:57]}
{[%emt 00:00:06]} g5 {[%clk 00:19:53]} {[%emt 00:00:48]} 26. f5 {[%clk
00:33:31]} {[%emt 00:02:57]} exf5 {[%clk 00:17:52]} {[%emt 00:02:31]} 27. e6
{[%clk 00:33:57]} {[%emt 00:00:03]} Qd6 {[%clk 00:17:42]} {[%emt 00:00:40]} 28.
Bd4 {[%clk 00:25:28]} {[%emt 00:08:58]} Ka8 {[%clk 00:15:30]} {[%emt 00:02:42]}
29. Be5 {[%clk 00:23:54]} {[%emt 00:02:04]} Qb6 {[%clk 00:14:24]} {[%emt
00:01:36]} 30. Bxh8 {[%clk 00:23:27]} {[%emt 00:00:58]} Rxh8 {[%clk 00:14:49]}
{[%emt 00:00:05]} 31. Qe5 {[%clk 00:22:56]} {[%emt 00:01:01]} Rf8 {[%clk
00:14:25]} {[%emt 00:00:54]} 32. c4 {[%clk 00:22:30]} {[%emt 00:00:56]} dxc4
{[%clk 00:11:51]} {[%emt 00:03:03]} 33. Bxc4 {[%clk 00:22:53]} {[%emt
00:00:07]} Be4+ {[%clk 00:00:32]} {[%emt 00:11:50]} 34. Bd3 {[%clk 00:22:40]}
{[%emt 00:00:42]} Bxg2 {[%clk 00:00:36]} {[%emt 00:00:26]} 35. Bxf5 {[%clk
00:22:33]} {[%emt 00:00:37]} Qc6 {[%clk 00:00:55]} {[%emt 00:00:12]} 36. Ka1
{[%clk 00:19:08]} {[%emt 00:03:55]} Bf3 {[%clk 00:00:32]} {[%emt 00:00:53]} 37.
Rxf3 {[%clk 00:19:21]} {[%emt 00:00:16]} 1-0

[Event "Tournoi de MI Clichy 92 2022"]
[Site "Clichy, France"]
[Date "2022.02.27"]
[Round "9.1"]
[White "Valles Moreno, Ivan"]
[Black "Soham Das"]
[Result "1-0"]
[TimeControl "1H40 40 moves plus 30 minutes + 30 seconds from move one"]
[WhiteElo "2393"]
[BlackElo "2378"]

1. Nf3 {[%clk 01:25:13]} {[%emt 00:05:43]} d5 {[%clk 01:23:24]} {[%emt
00:07:38]} 2. g3 {[%clk 01:25:35]} {[%emt 00:00:08]} Bg4 {[%clk 01:23:48]}
{[%emt 00:00:07]} 3. Bg2 {[%clk 01:25:57]} {[%emt 00:00:07]} c6 {[%clk
01:23:38]} {[%emt 00:00:41]} 4. O-O {[%clk 01:26:17]} {[%emt 00:00:08]} Nd7
{[%clk 01:24:03]} {[%emt 00:00:06]} 5. d4 {[%clk 01:26:10]} {[%emt 00:00:37]}
e6 {[%clk 01:23:43]} {[%emt 00:00:51]} 6. Nbd2 {[%clk 01:20:42]} {[%emt
00:05:56]} f5 {[%clk 01:19:21]} {[%emt 00:04:54]} 7. c4 {[%clk 01:21:01]}
{[%emt 00:00:10]} Bd6 {[%clk 01:17:59]} {[%emt 00:01:53]} 8. Qb3 {[%clk
01:14:10]} {[%emt 00:07:19]} Rb8 {[%clk 01:16:32]} {[%emt 00:01:58]} 9. Re1
{[%clk 01:12:11]} {[%emt 00:02:28]} Qf6 {[%clk 00:46:04]} {[%emt 00:31:00]} 10.
cxd5 {[%clk 01:00:47]} {[%emt 00:11:52]} cxd5 {[%clk 00:46:29]} {[%emt
00:00:06]} 11. e4 {[%clk 00:57:22]} {[%emt 00:03:53]} fxe4 {[%clk 00:41:24]}
{[%emt 00:05:37]} 12. Ng5 {[%clk 00:56:39]} {[%emt 00:01:11]} Ne7 {[%clk
00:37:22]} {[%emt 00:04:33]} 13. Ndxe4 {[%clk 00:51:41]} {[%emt 00:05:27]} dxe4
{[%clk 00:37:13]} {[%emt 00:00:41]} 14. Nxe4 {[%clk 00:52:04]} {[%emt
00:00:07]} Qxd4 {[%clk 00:37:39]} {[%emt 00:00:05]} 15. Be3 {[%clk 00:51:54]}
{[%emt 00:00:39]} Qb4 {[%clk 00:38:05]} {[%emt 00:00:05]} 16. Bd2 {[%clk
00:51:49]} {[%emt 00:00:34]} 1-0